fUSD/lending_fUSD_20260321
["ID","MTS","AMOUNT","RATE_DAILY","PERIOD"]
[408675605,1774107435224,-5000.01,0.00013136,2]
[408675606,1774107438407,-5000.01,0.00013136,2]
[408675607,1774107441360,-5000.01,0.00013136,2]
[408675608,1774107444469,-5000.01,0.00013136,2]
[408675609,1774107447423,-5000.01,0.00013136,2]
[408675610,1774107453584,-5000.01,0.00013136,2]
[408675611,1774107459598,-5000.01,0.00013136,2]
[408675612,1774107481211,300.0,0.00013135,2]
[408675613,1774107514263,1493.44459032,0.00013036,2]
[408675614,1774107514285,10000.01,0.00013036,2]
[408675615,1774107514307,10000.01,0.00013036,2]
[408675616,1774107514329,7456.56540968,0.00013036,2]
[408675617,1774107541479,300.0,0.00013135,2]
[408675618,1774107541938,150.0,0.00013135,2]
[408675619,1774107558687,166.66,0.0001281,2]
[408675620,1774107558894,166.66,0.0001308,2]
[408675621,1774107574507,-184654.22542122,0.00013136,2]
[408675622,1774107574528,-253.55651067,0.00013154,2]
[408675623,1774107574549,-587.46593813,0.00013173,2]
[408675624,1774107574569,-500.0,0.00013173,2]
[408675625,1774107574590,-502.70872961,0.00013184,2]
[408675626,1774107574613,-500.0,0.00013184,2]
[408675627,1774107574637,-500.0,0.00013184,2]
[408675628,1774107574660,-500.0,0.00013184,2]
[408675629,1774107574685,-500.0,0.00013184,2]
[408675630,1774107574709,-500.0,0.00013184,2]
[408675631,1774107574731,-500.0,0.00013184,2]
[408675632,1774107574755,-500.0,0.00013184,2]
[408675633,1774107574781,-500.0,0.00013184,2]
[408675634,1774107574804,-500.0,0.00013184,2]
[408675635,1774107574827,-500.0,0.00013184,2]
[408675636,1774107574850,-500.0,0.00013184,2]
[408675637,1774107574872,-500.0,0.00013184,2]
[408675638,1774107574895,-500.0,0.00013184,2]
[408675639,1774107574918,-500.0,0.00013184,2]
[408675640,1774107574940,-500.0,0.00013184,2]
[408675641,1774107574963,-500.0,0.00013184,2]
[408675642,1774107574988,-500.0,0.00013184,2]
[408675643,1774107575011,-500.0,0.00013184,2]
[408675644,1774107575037,-500.0,0.00013184,2]
[408675645,1774107575063,-500.0,0.00013184,2]
[408675646,1774107575085,-500.0,0.00013184,2]
[408675647,1774107575108,-500.0,0.00013184,2]
[408675648,1774107575134,-500.0,0.00013184,2]
[408675649,1774107575158,-500.0,0.00013184,2]
[408675650,1774107575181,-500.0,0.00013184,2]
[408675651,1774107575206,-500.0,0.00013184,2]
[408675652,1774107575228,-488.17788481,0.00013184,2]
[408675653,1774107575250,-412186.7038,0.00013185,2]
[408675654,1774107575272,-559.36772367,0.00013287,2]
[408675655,1774107575293,-166.66,0.0001335,2]
[408675656,1774107575319,-11379.57779864,0.00013387,2]
[408675657,1774107575341,-10375.16610307,0.00013387,2]
[408675658,1774107575364,-2901.21,0.00013405,2]
[408675659,1774107575386,-166.66,0.00013619,2]
[408675660,1774107575408,-559.3677236,0.0001366,2]
[408675661,1774107575430,-500.0,0.00013698,2]
[408675662,1774107575454,-503.01706708,0.00013698,2]
[408675663,1774107575475,-191.37,0.00013699,2]
[408675664,1774107575497,-11379.57779864,0.00013701,2]
[408675665,1774107575522,-10375.16610307,0.00013701,2]
[408675666,1774107575546,-1000.0,0.00013721,2]
[408675667,1774107575568,-2901.21,0.00013777,2]
[408675668,1774107575591,-166.66,0.00013889,2]
[408675679,1774107620901,10000.01,0.00013036,2]
[408675680,1774107620924,10000.01,0.00013036,2]
[408675681,1774107620947,10000.01,0.00013036,2]
[408675682,1774107620971,10000.01,0.00013036,2]
[408675683,1774107620996,10000.01,0.00013036,2]
[408675684,1774107621021,10000.01,0.00013036,2]
[408675685,1774107621047,10000.01,0.00013036,2]
[408675686,1774107621072,10000.01,0.00013036,2]
[408675687,1774107621097,10000.01,0.00013036,2]
[408675688,1774107621120,10000.01,0.00013036,2]
[408675689,1774107632277,-823255.3315,0.00013036,2]
[408675690,1774107643727,1000.0,0.00013036,2]
[408675691,1774107656342,9000.01,0.00013036,2]
[408675692,1774107656364,10000.01,0.00013036,2]
[408675693,1774107656383,9756.0625,0.00013036,2]
[408675694,1774107662287,243.9475,0.00013084,2]
[408675695,1774107662311,2256.0525,0.00013084,2]
[408675696,1774107668158,7743.9575,7.945e-05,2]
[408675697,1774107668181,10000.01,7.945e-05,2]
[408675698,1774107668202,4789.645297,7.945e-05,2]
[408675699,1774107753197,500.0,0.00013035,2]
[408675700,1774107753237,500.0,0.00013035,2]
[408675701,1774107753286,500.0,0.00013035,2]
[408675702,1774107753329,500.0,0.00013035,2]
[408675703,1774107753365,500.0,0.00013035,2]
[408675704,1774107753404,500.0,0.00013035,2]
[408675705,1774107753439,500.0,0.00013035,2]
[408675706,1774107753481,500.0,0.00013035,2]
[408675707,1774107753520,500.0,0.00013035,2]
[408675708,1774107753564,500.0,0.00013035,2]
[408675709,1774107753602,210.364703,0.00013035,2]
[408675710,1774107753628,289.635297,0.00013035,2]
[408675711,1774107753665,500.0,0.00013035,2]
[408675712,1774107753716,500.0,0.00013035,2]
[408675713,1774107753761,500.0,0.00013035,2]
[408675714,1774107753806,500.0,0.00013035,2]
[408675715,1774107753869,500.0,0.00013035,2]
[408675716,1774107753905,500.0,0.00013035,2]
[408675717,1774107753945,500.0,0.00013035,2]
[408675718,1774107753976,478.06136269,0.00013035,2]
[408675719,1774107754016,500.0,0.00013035,2]
[408675720,1774107754048,500.0,0.00013035,2]
[408675721,1774107754083,500.0,0.00013035,2]
[408675722,1774107754120,500.0,0.00013035,2]
[408675723,1774107754207,500.0,0.00013035,2]
[408675724,1774107754293,500.0,0.00013035,2]
[408675725,1774107754330,500.0,0.00013035,2]
[408675726,1774107754365,500.0,0.00013035,2]
[408675727,1774107754406,500.0,0.00013035,2]
[408675728,1774107754439,500.0,0.00013035,2]
[408675729,1774107754502,500.0,0.00013035,2]
[408675730,1774107754551,232.31334031,0.00013035,2]
[408675731,1774107754578,267.68665969,0.00013035,2]
[408675732,1774107754617,500.0,0.00013035,2]
[408675733,1774107754676,500.0,0.00013035,2]
[408675734,1774107770693,6690.3103802,0.0001311,2]
[408675735,1774107774738,500.0,0.00013035,2]
[408675736,1774107774953,500.0,0.00013035,2]
[408675737,1774107774996,500.0,0.00013035,2]
[408675738,1774107775032,500.0,0.00013035,2]
[408675739,1774107775243,500.0,0.00013035,2]
[408675740,1774107775276,500.0,0.00013035,2]
[408675741,1774107775305,500.0,0.00013035,2]
[408675742,1774107775335,500.0,0.00013035,2]
[408675743,1774107775368,500.0,0.00013035,2]
[408675744,1774107775398,500.0,0.00013035,2]
[408675745,1774107775429,500.0,0.00013035,2]
[408675746,1774107775460,500.0,0.00013035,2]
[408675747,1774107775501,500.0,0.00013035,2]
[408675748,1774107775532,500.0,0.00013035,2]
[408675749,1774107775562,500.0,0.00013035,2]
[408675750,1774107775593,500.0,0.00013035,2]
[408675751,1774107775623,500.0,0.00013035,2]
[408675752,1774107775653,500.0,0.00013035,2]
[408675753,1774107780644,10000.01,0.00013036,2]
[408675754,1774107780673,10000.01,0.00013036,2]
[408675755,1774107780701,10000.01,0.00013036,2]
[408675756,1774107780727,10000.01,0.00013036,2]
[408675757,1774107780754,10000.01,0.00013036,2]
[408675758,1774107821246,154.0,5.953e-05,2]
[408675759,1774107855631,-419.5257927,0.0001301,2]
[408675760,1774107855659,-1669.63481263,0.0001301,2]
[408675761,1774107855816,-4178.32121066,0.0001301,2]
[408675762,1774107855935,-1643.36757868,0.0001301,2]
[408675763,1774107901304,1200.0,0.00013034,2]
[408675764,1774107901372,300.0,0.00013034,2]
[408675765,1774107901925,150.0,0.00013034,2]
[408675766,1774107961173,300.0,0.00013034,2]
[408675767,1774107990128,-223.19132808,0.00013035,2]
[408675768,1774107990149,-193.76250543,0.00013035,2]
[408675769,1774107990170,-13.22677977,0.00013035,2]
[408675770,1774108049121,-486.77322023,0.00013035,2]
[408675771,1774108049143,-306.81854989,0.00013035,2]
[408675772,1774108106621,367.08506863,0.0001301,2]
[408675779,1774108151089,-193.18145011,0.00013035,2]
[408675780,1774108151114,-500.0,0.00013035,2]
[408675781,1774108151134,-300.46994989,0.00013035,2]
[408675782,1774108161091,-199.53005011,0.00013035,2]
[408675783,1774108161112,-583.79170956,0.00013035,2]
[408675784,1774108161137,-500.0,0.00013035,2]
[408675785,1774108161158,-477.83048143,0.00013035,2]
[408675786,1774108161182,-500.0,0.00013035,2]
[408675787,1774108161205,-547.80613627,0.00013035,2]
[408675788,1774108161230,-150.0,0.00013035,2]
[408675789,1774108161256,-37287.89999732,0.00013036,2]
[408675790,1774108167133,-4378.48115321,0.00013036,2]
[408675791,1774108167476,7682.92493137,0.0001301,2]
[408675792,1774108167501,949.22502613,0.0001301,2]
[408675793,1774108201124,1200.0,0.00013035,2]
[408675794,1774108201310,300.0,0.00013035,2]
[408675796,1774108232063,-454.55387908,0.00013036,2]
[408675797,1774108232075,-3578.98522426,0.00013036,2]
[408675798,1774108232115,-343.32323318,0.00013036,2]
[408675799,1774108232126,-753.50547587,0.00013036,2]
[408675805,1774108232746,-119788.17133545,0.00013036,2]
[408675806,1774108232760,-129793.53037877,0.00013036,2]
[408675807,1774108232771,-740.01793856,0.00013036,2]
[408675808,1774108232781,-1641.08280428,0.00013036,2]
[408675809,1774108232792,-676.92004919,0.00013036,2]
[408675810,1774108232803,-718.404805,0.00013036,2]
[408675811,1774108232814,-3063.07335845,0.00013036,2]
[408675815,1774108238295,-7459.18504,0.00013036,2]
[408675817,1774108238557,-88.17686329,0.00013036,2]
[408675818,1774108238705,-643226.61946409,0.00013036,2]
[408675819,1774108238716,-282.6983344,0.0001311,2]
[408675820,1774108238725,-3172.3971195,0.0001311,2]
[408675821,1774108238735,-8632.1499575,0.00013331,2]
[408675822,1774108238744,-367.08506861,0.00013423,2]
[408675823,1774108238753,-8632.1499575,0.00013652,2]
[408675824,1774108238763,-200.0,0.00013746,2]
[408675825,1774108238774,-5018.32,0.00013788,2]
[408675826,1774108238783,-167.44290588,0.000138,2]
[408675827,1774108238793,-500.0,0.000138,2]
[408675828,1774108238802,-500.0,0.000138,2]
[408675829,1774108238812,-502.25774111,0.000138,2]
[408675830,1774108238821,-500.0,0.000138,2]
[408675831,1774108238830,-367.08506861,0.00013836,2]
[408675832,1774108238840,-8632.1499575,0.00013973,2]
[408675833,1774108238849,-2901.21,0.0001415,2]
[408675834,1774108238857,-166.66,0.00014159,2]
[408675835,1774108238866,-367.08506861,0.00014249,2]
[408675836,1774108238876,-420.0,0.00014294,2]
[408675837,1774108238885,-8632.1499575,0.00014294,2]
[408675838,1774108238895,-1026.6,0.00014299,2]
[408675839,1774108238904,-1680.0,0.00014338,2]
[408675840,1774108238914,-250.0,0.00014338,2]
[408675841,1774108238923,-2500.0,0.00014338,2]
[408675842,1774108238932,-250.0,0.00014338,2]
[408675843,1774108238941,-193.63757919,0.00014338,2]
[408675844,1774108238951,-250.0,0.00014338,2]
[408675845,1774108238961,-193.0,0.00014339,2]
[408675846,1774108238970,-445.18,0.000144,2]
[408675847,1774108238979,-730.84,0.000144,2]
[408675848,1774108238988,-734.22,0.000144,2]
[408675849,1774108238998,-23557.0,0.00014426,2]
[408675850,1774108239007,-328.96,0.00014441,2]
[408675851,1774108239017,-150.99,0.00014516,2]
[408675852,1774108239027,-9999.99,0.00014516,2]
[408675853,1774108239037,-150.99,0.00014516,2]
[408675854,1774108239047,-19408.77,0.00014521,2]
[408675855,1774108239056,-500.52,0.00014521,2]
[408675856,1774108239066,-3346.47,0.00014521,2]
[408675857,1774108239075,-156.0,0.00014547,2]
[408675858,1774108239084,-2000.0,0.00014564,2]
[408675859,1774108239093,-9999.99,0.00014564,2]
[408675860,1774108239103,-9999.99,0.00014564,2]
[408675861,1774108239112,-22903.57,0.00014564,2]
[408675862,1774108239121,-161.31,0.00014608,2]
[408675863,1774108239130,-8632.1499575,0.00014616,2]
[408675864,1774108239139,-570.0,0.00014652,2]
[408675865,1774108239149,-367.08506861,0.00014661,2]
[408675866,1774108239159,-570.0,0.00014725,2]
[408675867,1774108239168,-6690.3103802,0.00014753,2]
[408675868,1774108239177,-282.6983344,0.00014761,2]
[408675869,1774108239186,-500.0,0.00014767,2]
[408675870,1774108239196,-707.8574773,0.00014773,2]
[408675871,1774108239205,-501.0,0.00014795,2]
[408675872,1774108239214,-413.83535177,0.00014876,2]
[408675873,1774108239223,-187.04841564,0.00014876,2]
[408675874,1774108239232,-500.0,0.00014876,2]
[408675875,1774108239241,-500.0,0.00014876,2]
[408675876,1774108239251,-500.0,0.00014876,2]
[408675877,1774108239260,-500.0,0.00014876,2]
[408675878,1774108239269,-500.0,0.00014876,2]
[408675879,1774108239279,-500.0,0.00014876,2]
[408675880,1774108239288,-500.0,0.00014876,2]
[408675881,1774108239297,-299.68792232,0.00014876,2]
[408675882,1774108239307,-500.0,0.00014876,2]
[408675883,1774108239316,-500.0,0.00014876,2]
[408675884,1774108239326,-500.0,0.00014876,2]
[408675885,1774108239338,-500.0,0.00014876,2]
[408675886,1774108239348,-500.0,0.00014876,2]
[408675887,1774108239357,-465.82717598,0.00014876,2]
[408675888,1774108239367,-300.0,0.00014876,2]
[408675889,1774108239377,-500.0,0.00014877,2]
[408675890,1774108239387,-250.0,0.00014877,2]
[408675891,1774108239396,-500.0,0.00014877,2]
[408675892,1774108239406,-280.93336224,0.00014877,2]
[408675893,1774108239416,-500.0,0.00014877,2]
[408675894,1774108239425,-500.0,0.00014877,2]
[408675895,1774108239434,-500.0,0.00014877,2]
[408675896,1774108239443,-500.0,0.00014877,2]
[408675897,1774108239452,-500.0,0.00014877,2]
[408675898,1774108239461,-250.0,0.00014877,2]
[408675899,1774108239470,-500.0,0.00014877,2]
[408675900,1774108239480,-250.0,0.00014877,2]
[408675901,1774108239489,-500.0,0.00014877,2]
[408675902,1774108239499,-250.0,0.00014877,2]
[408675903,1774108239508,-500.0,0.00014877,2]
[408675904,1774108239517,-250.0,0.00014877,2]
[408675905,1774108239527,-500.0,0.00014877,2]
[408675906,1774108239536,-250.0,0.00014877,2]
[408675907,1774108239546,-250.0,0.00014877,2]
[408675908,1774108239555,-500.0,0.00014877,2]
[408675909,1774108239564,-250.0,0.00014877,2]
[408675910,1774108239573,-500.0,0.00014877,2]
[408675911,1774108239583,-250.0,0.00014877,2]
[408675912,1774108239592,-500.0,0.00014877,2]
[408675913,1774108239602,-268.3661478,0.00014877,2]
[408675914,1774108239611,-500.0,0.00014877,2]
[408675915,1774108239621,-500.0,0.00014877,2]
[408675916,1774108239630,-250.0,0.00014877,2]
[408675917,1774108239640,-500.0,0.00014877,2]
[408675918,1774108239650,-250.0,0.00014877,2]
[408675919,1774108239659,-500.0,0.00014877,2]
[408675920,1774108239669,-250.0,0.00014877,2]
[408675921,1774108239678,-500.0,0.00014877,2]
[408675922,1774108239687,-516.47340423,0.00014877,2]
[408675923,1774108239698,-250.0,0.00014877,2]
[408675924,1774108239708,-500.0,0.00014877,2]
[408675925,1774108239718,-250.0,0.00014877,2]
[408675926,1774108239727,-500.0,0.00014877,2]
[408675927,1774108239736,-250.0,0.00014877,2]
[408675928,1774108239746,-500.0,0.00014877,2]
[408675929,1774108239755,-250.0,0.00014877,2]
[408675930,1774108239765,-260.83847575,0.00014877,2]
[408675931,1774108239774,-250.0,0.00014877,2]
[408675932,1774108239784,-151.0,0.00014877,2]
[408675933,1774108239795,-250.0,0.00014877,2]
[408675934,1774108239804,-250.0,0.00014877,2]
[408675935,1774108239814,-250.0,0.00014877,2]
[408675936,1774108239823,-250.0,0.00014877,2]
[408675937,1774108239832,-335.32119913,0.00014877,2]
[408675938,1774108239841,-250.0,0.00014877,2]
[408675939,1774108239851,-250.0,0.00014877,2]
[408675940,1774108239861,-250.0,0.00014877,2]
[408675941,1774108239871,-250.0,0.00014877,2]
[408675942,1774108239881,-250.0,0.00014877,2]
[408675943,1774108239890,-250.0,0.00014877,2]
[408675944,1774108239899,-250.0,0.00014877,2]
[408675945,1774108239908,-250.0,0.00014877,2]
[408675946,1774108239917,-250.0,0.00014877,2]
[408675947,1774108239927,-250.0,0.00014877,2]
[408675948,1774108239937,-250.0,0.00014877,2]
[408675949,1774108239947,-8632.1499575,0.00014937,2]
[408675950,1774108239956,-367.08506861,0.00015074,2]
[408675951,1774108239966,-1164.93,0.00015078,2]
[408675952,1774108239975,-235.0,0.00015082,2]
[408675953,1774108239985,-235.0,0.0001509,2]
[408675954,1774108239995,-235.0,0.00015109,2]
[408675955,1774108240004,-235.0,0.00015135,2]
[408675956,1774108240013,-157.9443522,0.00015144,2]
[408675957,1774108240023,-235.0,0.00015182,2]
[408675958,1774108240032,-235.0,0.00015204,2]
[408675959,1774108240042,-235.0,0.00015243,2]
[408675960,1774108240052,-8632.1499575,0.00015258,2]
[408675961,1774108240061,-235.0,0.0001527,2]
[408675962,1774108240070,-235.0,0.00015278,2]
[408675963,1774108240080,-1164.93,0.00015352,2]
[408675964,1774108240089,-156.0,0.00015355,2]
[408675965,1774108240100,-350.0,0.00015359,2]
[408675966,1774108240109,-446.0,0.0001536,2]
[408675967,1774108240120,-446.0,0.0001536,2]
[408675968,1774108240131,-446.0,0.0001536,2]
[408675969,1774108240142,-446.0,0.0001536,2]
[408675970,1774108240153,-446.0,0.0001536,2]
[408675971,1774108240162,-446.0,0.0001536,2]
[408675972,1774108240172,-446.0,0.0001536,2]
[408675973,1774108240181,-446.0,0.0001536,2]
[408675974,1774108240191,-446.0,0.0001536,2]
[408675975,1774108240200,-446.0,0.0001536,2]
[408675976,1774108240210,-446.0,0.0001536,2]
[408675977,1774108240220,-446.0,0.0001536,2]
[408675978,1774108240229,-446.0,0.0001536,2]
[408675979,1774108240239,-446.0,0.0001536,2]
[408675980,1774108240248,-446.0,0.0001536,2]
[408675981,1774108240258,-446.0,0.0001536,2]
[408675982,1774108240268,-446.0,0.0001536,2]
[408675983,1774108240277,-446.0,0.0001536,2]
[408675984,1774108240287,-446.0,0.0001536,2]
[408675985,1774108240296,-446.0,0.0001536,2]
[408675986,1774108240305,-446.0,0.0001536,2]
[408675987,1774108240314,-446.0,0.0001536,2]
[408675988,1774108240324,-446.0,0.0001536,2]
[408675989,1774108240336,-455.95065984,0.0001536,2]
[408675990,1774108240345,-500.0,0.0001536,2]
[408675991,1774108240354,-500.0,0.0001536,2]
[408675992,1774108240363,-474.69033023,0.0001536,2]
[408675993,1774108240373,-500.0,0.0001536,2]
[408675995,1774108240384,-500.0,0.0001536,2]
[408675996,1774108240393,-500.0,0.0001536,2]
[408675997,1774108240403,-500.0,0.0001536,2]
[408675998,1774108240412,-208.50828894,0.0001536,2]
[408675999,1774108240422,-235.0,0.00015445,2]
[408676000,1774108240431,-235.0,0.00015469,2]
[408676001,1774108240440,-367.08506861,0.00015487,2]
[408676002,1774108240449,-235.0,0.00015502,2]
[408676003,1774108240458,-2120.54,0.00015507,2]
[408676004,1774108240468,-169.847786,0.00015576,7]
[408676005,1774108240477,-8632.1499575,0.00015579,2]
[408676006,1774108240487,-457.187136,0.00015582,7]
[408676007,1774108240497,-309.208988,0.00015582,7]
[408676008,1774108240507,-350.0,0.00015608,2]
[408676009,1774108240517,-2497.431,0.0001561,2]
[408676010,1774108240526,-240.445,0.0001561,2]
[408676011,1774108240536,-259.140354,0.0001561,7]
[408676012,1774108240546,-1164.93,0.00015626,2]
[408676013,1774108240557,-235.0,0.00015632,2]
[408676014,1774108240566,-2402.0,0.0001564,2]
[408676015,1774108240576,-160.0,0.00015649,2]
[408676016,1774108240585,-979.16666667,0.00015649,2]
[408676017,1774108240596,-587.0,0.00015676,2]
[408676018,1774108240606,-1101.97384734,0.0001568,2]
[408676019,1774108240615,-1000.0,0.00015702,2]
[408676020,1774108240625,-500.0,0.00015716,2]
[408676021,1774108240634,-500.0,0.00015716,2]
[408676022,1774108240644,-500.0,0.00015716,2]
[408676023,1774108240653,-500.0,0.00015716,2]
[408676024,1774108240663,-500.0,0.00015716,2]
[408676025,1774108240672,-500.0,0.00015716,2]
[408676026,1774108240682,-500.0,0.00015716,2]
[408676027,1774108240693,-500.0,0.00015716,2]
[408676028,1774108240703,-456.49769709,0.00015716,2]
[408676029,1774108240712,-500.0,0.00015716,2]
[408676030,1774108240722,-500.0,0.00015716,2]
[408676031,1774108240731,-500.0,0.00015716,2]
[408676032,1774108240743,-500.0,0.00015716,2]
[408676033,1774108240753,-500.0,0.00015716,2]
[408676034,1774108240763,-500.0,0.00015716,2]
[408676035,1774108240773,-500.0,0.00015716,2]
[408676036,1774108240782,-500.0,0.00015716,2]
[408676037,1774108240792,-500.0,0.00015716,2]
[408676038,1774108240801,-500.0,0.00015716,2]
[408676039,1774108240811,-504.87563133,0.00015716,2]
[408676040,1774108240822,-1000.0,0.0001573,2]
[408676041,1774108240832,-150.0,0.00015742,2]
[408676042,1774108240843,-10062.19865074,0.00015756,2]
[408676043,1774108240854,-1796.0,0.00015772,2]
[408676044,1774108240864,-150.0,0.00015795,2]
[408676045,1774108240873,-3532.0,0.000158,2]
[408676046,1774108240883,-1000.0,0.000158,2]
[408676047,1774108240892,-214.0,0.00015808,2]
[408676048,1774108240904,-168.36019124,0.00015838,2]
[408676049,1774108240915,-157.56924,0.0001584,2]
[408676050,1774108240925,-157.56924,0.0001584,2]
[408676051,1774108240935,-150.0,0.00015841,2]
[408676052,1774108240944,-292.83475976,0.00015845,2]
[408676053,1774108240954,-168.36019118,0.00015848,2]
[408676054,1774108240964,-1000.0,0.00015852,2]
[408676055,1774108240974,-168.36019118,0.00015859,2]
[408676056,1774108240984,-1078.35161779,0.00015859,2]
[408676057,1774108240993,-150.0,0.00015861,2]
[408676058,1774108241004,-224.0,0.00015862,2]
[408676059,1774108241015,-288.32393429,0.00015863,2]
[408676060,1774108241024,-168.36019118,0.00015869,2]
[408676061,1774108241034,-292.83475976,0.00015873,2]
[408676062,1774108241043,-500.60325695,0.00015873,2]
[408676063,1774108241053,-500.0,0.00015873,2]
[408676064,1774108241063,-168.36019118,0.00015879,2]
[408676065,1774108241072,-150.0,0.00015882,2]
[408676066,1774108241082,-168.36019118,0.0001589,2]
[408676067,1774108241091,-1000.0,0.0001589,2]
[408676068,1774108241100,-2120.54,0.00015895,2]
[408676069,1774108241111,-150.0,0.00015896,2]
[408676070,1774108241122,-1059.2752,0.000159,2]
[408676071,1774108241132,-168.36019118,0.000159,2]
[408676072,1774108241141,-3517.815,0.000159,2]
[408676073,1774108241151,-1164.93,0.000159,2]
[408676074,1774108241160,-292.83475976,0.000159,2]
[408676075,1774108241171,-5000.0,0.000159,2]
[408676076,1774108241181,-367.08506861,0.000159,2]
[408676077,1774108241190,-631.4293198,0.000159,2]
[408676078,1774108241201,-348.1590763,0.000159,2]
[408676079,1774108241211,-8632.1499575,0.000159,2]
[408676080,1774108241221,-3382.0,0.000159,5]
[408676081,1774108241230,-1000.0,0.00015902,2]
[408676082,1774108241241,-1000.0,0.00015903,2]
[408676083,1774108241252,-150.0,0.00015905,2]
[408676084,1774108241261,-1000.0,0.00015913,2]
[408676085,1774108241270,-4230.0,0.00015929,5]
[408676086,1774108241280,-3255.0084788,0.00015929,2]
[408676087,1774108241289,-82397.1395543,0.00015929,2]
[408676088,1774108241298,-150.0,0.00015945,2]
[408676089,1774108241307,-235.0,0.00015951,2]
[408676090,1774108241316,-1962.81419762,0.00015956,2]
[408676091,1774108241326,-150.0,0.00015965,2]
[408676092,1774108241338,-6945.0,0.00015973,2]
[408676093,1774108241348,-500.0,0.00015973,2]
[408676094,1774108241357,-500.0,0.00015973,2]
[408676095,1774108241367,-235.0,0.00015986,2]
[408676096,1774108241378,-288.32393429,0.0001599,2]
[408676097,1774108241387,-288.32393429,0.0001599,2]
[408676098,1774108241396,-151.0,0.00015997,2]
[408676099,1774108241405,-225.696003,0.00015999,2]
[408676100,1774108241416,-161.206,0.00015999,2]
[408676101,1774108241425,-236.41810785,0.00015999,2]
[408676102,1774108241435,-88505.18411365,0.00016,2]
[408676103,1774108241466,-166.82,0.00013999,2]
[408676104,1774108241475,-198338.92835715,0.00016,2]
[408676105,1774108241486,-34000.5,0.00016,2]
[408676106,1774108241502,-9797.30463551,0.00016,2]
[408676107,1774108241512,-747.03995,0.00016,2]
[408676108,1774108241524,-442.7341553,0.00016,2]
[408676114,1774108247241,-299.51880524,0.000159,2]
[408676115,1774108247254,-279.77027498,0.000159,2]
[408676116,1774108247264,-158.71075981,0.00016,2]
[408676117,1774108247276,-53272.5316852,0.00016,2]
[408676142,1774108247855,-49414.566942,0.00016,2]
[408676145,1774108247866,-3535.0,0.00016,2]
[408676147,1774108247878,-423.03700316,0.00016,2]
[408676150,1774108247895,-404.71667556,0.00016,2]
[408676368,1774108262152,10000.01,0.00012936,2]
[408676369,1774108262178,10000.01,0.00012936,2]
[408676370,1774108262204,10000.01,0.00012936,2]
[408676371,1774108262229,10000.01,0.00012936,2]
[408676372,1774108262255,10000.01,0.00012936,2]
[408676373,1774108321141,300.0,0.00012935,2]
[408676374,1774108381392,300.0,0.00012935,2]
[408676375,1774108501111,1200.0,0.00012935,2]
[408676376,1774108501139,300.0,0.00012935,2]
[408676377,1774108561070,300.0,0.00012935,2]
[408676378,1774108621663,300.0,0.00012935,2]
[408676379,1774108681499,300.0,0.00012935,2]
[408676380,1774108801144,1200.0,0.00012935,2]
[408676381,1774108803397,5800.01,0.00012384,2]
[408676382,1774108803423,62.97401019,0.00012384,2]